Cogmind - Beta 13 @@@ ROGUE MODE // 2024.05.30 @ 22:45:18 Player: Sionnis Result: Self-destructed Performance ------------- Evolutions (2) 1000 Regions Visited (3) 600 Robots Destroyed (4) 20 Value Destroyed (68) 68 Prototype IDs (0) 0 Alien Tech Used (0) 0 Bonus (470) 470 TOTAL SCORE: 2158 Bonus ------- Pacifist 470 Cogmind --------- Core Integrity 395/550 Matter 261/300 Energy 80/265 System Corruption 8% Temperature Cool (11) Movement Flying (26) Location -8/Materials Parts ------- > --- POWER (1) -------- Improved Ion Engine > --- PROPULSION (4) --- VTOL Module VTOL Module VTOL Module Cesium-ion Thruster > --- UTILITY (4) ------ Improved Medium Armor Plating > --- WEAPON (2) ------- Mace > --- INVENTORY (5) ---- Cesium-ion Thruster Improved Grenade Launcher Mace Mace Peak State ------------ > --- POWER ------------ Light Ion Engine > --- PROPULSION ------- VTOL Module VTOL Module VTOL Module Cesium-ion Thruster > --- UTILITY ---------- Improved Medium Armor Plating > --- WEAPON ----------- Mace Mace > --- INVENTORY -------- Improved Ion Engine VTOL Module Cesium-ion Thruster Cesium-ion Thruster Mace [Rating: 19] Favorites ----------- Power Light Ion Engine Engine Light Ion Engine Propulsion VTOL Module Flight Unit VTOL Module Utility Improved Medium Armor Plating Protection Improved Medium Armor Plating Weapon Mace Impact Weapon Mace Build | -11 -10 -9 -8 ------- Run | Yrd Mat Mat Mat Slots Evolved 4 | . . 2 2 Power . | . . . . Propulsion 2 | . . 1 1 Utility 2 | . . 1 1 Weapon . | . . . . Parts Attached 11 | 1 2 3 5 Power 2 | 1 . . 1 Engine 2 | 1 . . 1 Core . | . . . . Reactor . | . . . . Propulsion 6 | . 2 1 3 Treads . | . . . . Leg . | . . . . Wheel . | . . . . Hover . | . . . . Flight 6 | . 2 1 3 Utility 1 | . . . 1 Device . | . . . . Storage . | . . . . Processor . | . . . . Hackware . | . . . . Protection 1 | . . . 1 Artifact . | . . . . Weapon 2 | . . 2 . Energy Gun . | . . . . Energy Cannon . | . . . . Ballistic Gun . | . . . . Ballistic Cannon . | . . . . Launcher . | . . . . Special Weapon . | . . . . Impact Weapon 2 | . . 2 . Slashing Weapon . | . . . . Piercing Weapon . | . . . . Special Melee Weapon . | . . . . Unidentified Prototypes . | . . . . Parts Lost 2 | . . . 2 Power 1 | . . . 1 Propulsion 1 | . . . 1 Utility . | . . . . Weapon . | . . . . Highest Loss Streak 2 | . . . 2 To Critical Strikes . | . . . . Average Slot Usage (%) 60 | . 32 60 64 Engine 8 | . 14 11 7 Flight 33 | . 18 33 36 Protection 3 | . . . 4 Impact Weapon 14 | . . 16 16 Naked Turns . | . . . . Heaviest Build 16 | 3 3 7 16 Greatest Support 17 | 3 8 12 17 Greatest Overweight (x) . | . . . . Average Overweight (x) . | . . . . Largest Inventory Capacity 5 | 5 5 5 5 Average Capacity 5 | 5 5 5 5 Most Carried 5 | . 2 2 5 Average Carried 2 | . . 1 3 Final Capacity 5 | 5 5 5 5 Final Carried 4 | . 2 2 4 Class Distribution -------------------- 64% | Sprinter 35% | Mutant Dominant Class ---------------- Mutant | -10/Materials Sprinter | -9/Materials Sprinter | -8/Materials Resources | -11 -10 -9 -8 ----------- Run | Yrd Mat Mat Mat Matter Collected 270 | 134 . . 136 Remotely . | . . . . Salvage Created 124 | . . . 124 Parts 2 | . . . 2 Haulers Intercepted 1 | . . . 1 Recyclers Shooed . | . . . . Parts Field Recycled . | . . . . Retrieved Matter . | . . . . Parts Self-Destructed . | . . . . Prevented . | . . . . Kills | -11 -10 -9 -8 ------- Run | Yrd Mat Mat Mat Combat Hostiles Destroyed . | . . . . Classes Destroyed 3 | . . . 3 Hauler 1 | . . . 1 Operator 1 | . . . 1 Watcher 2 | . . . 2 Best Kill Streak 3 | . . . 3 Combat Bots Only . | . . . . Max Kills in Single Turn 1 | . . . 1 Gunslinging . | . . . . Exploded . | . . . . Melee . | . . . . Uniques/NPCs Destroyed . | . . . . Combat | -11 -10 -9 -8 -------- Run | Yrd Mat Mat Mat Hostile Shots Fired 62 | . . 6 56 Missed 39 | . . 5 34 Damage Taken 451 | . . 14 437 Core 155 | . . . 155 Absorbed by Shields . | . . . . Core Remaining (%) 100 | 100 100 100 . Volleys Fired . | . . . . Largest . | . . . . Hottest . | . . . . Shots Fired . | . . . . Gun . | . . . . Cannon . | . . . . Launcher . | . . . . Special . | . . . . Kinetic . | . . . . Thermal . | . . . . Explosive . | . . . . Electromagnetic . | . . . . Robot Hit Streak . | . . . . Robot Miss Streak . | . . . . Penetration Max . | . . . . Secondary Targets . | . . . . Shots Hit Robots 5 | . . . 5 Core Hits 1 | . . . 1 Critical Kills . | . . . . Critical Parts Destroyed 1 | . . . 1 Critical Strikes 1 | . . . 1 Smash 1 | . . . 1 Melee Attacks 20 | . . 5 15 Impact 20 | . . 5 15 Slashing . | . . . . Piercing . | . . . . Sneak Attacks 1 | . . . 1 Combat Hostiles . | . . . . Follow-up Attacks 1 | . . . 1 Damage Inflicted 232 | . . . 232 Guns . | . . . . Cannons . | . . . . Explosions . | . . . . Melee 232 | . . . 232 Ramming . | . . . . Kinetic . | . . . . Thermal . | . . . . Explosive . | . . . . Electromagnetic . | . . . . Impact 232 | . . . 232 Slashing . | . . . . Piercing . | . . . . Highest Corruption 8 | . . . 8 Average Corruption 8 | . . . 8 Corruption Purged . | . . . . Corruption Blocked . | . . . . Effects 2 | . . . 2 Matter Fused 1 | . . . 1 Data Loss (major) 1 | . . . 1 Overload Shots . | . . . . Overflow Damage 155 | . . . 155 Projectiles . | . . . . Explosions . | . . . . Melee 155 | . . . 155 Knockbacks . | . . . . Impact . | . . . . Kinetic . | . . . . Secondary . | . . . . Self-Inflicted Damage . | . . . . Shots . | . . . . Rammed . | . . . . Targets Rammed . | . . . . Kicked . | . . . . Crushed . | . . . . Highest Temperature 12 | . . . 12 Average Temperature 5 | . . . 5 Received Heat Transfer 63 | . . . 63 Siege Activations . | . . . . Robots Corrupted . | . . . . Combat Hostiles . | . . . . Parts Fried 6 | . . . 6 Impact Corruptions 4 | . . . 4 Robots Melted . | . . . . Combat Hostiles . | . . . . Parts Melted . | . . . . Heat Transferred . | . . . . Parts Sabotaged . | . . . . Parts Stolen . | . . . . Parts Stripped . | . . . . Power Chain Reactions . | . . . . Alert | -11 -10 -9 -8 ------- Run | Yrd Mat Mat Mat Peak Influence 259 | . 30 37 259 Initial 15 | . . 12 15 Average 84 | . 6 20 118 Maximum Alert Level 1 | . . . 1 Low Security (%) 95 | 100 100 100 93 Level 1 4 | . . . 6 Level 2 . | . . . . Level 3 . | . . . . Level 4 . | . . . . Level 5 . | . . . . High Security . | . . . . Max Security . | . . . . Squads Dispatched 7 | . . . 7 Investigation 6 | . . . 6 Extermination . | . . . . Reinforcement 1 | . . . 1 Assault . | . . . . Garrison . | . . . . Intercept . | . . . . Searches Triggered . | . . . . Construction Impeded . | . . . . Haulers Reinforced . | . . . . Active Scanning Responses . | . . . . Cargo Convoy Interrupts . | . . . . Stealth | -11 -10 -9 -8 --------- Run | Yrd Mat Mat Mat Distress Signals 1 | . . . 1 Communications Jammed . | . . . . Distress Signals . | . . . . Times Spotted 40 | . 2 5 33 Peak Tracking Total 28 | . 2 5 28 Tactical Retreats 3 | . . . 3 Traps | -11 -10 -9 -8 ------- Run | Yrd Mat Mat Mat Traps Triggered . | . . . . Indirectly . | . . . . Trap Hack Attempts . | . . . . Triggered . | . . . . Disarmed . | . . . . Reprogrammed . | . . . . Reused . | . . . . Traps Extracted . | . . . . Installed . | . . . . Triggered . | . . . . Machines | -11 -10 -9 -8 ---------- Run | Yrd Mat Mat Mat Machines Disabled . | . . . . Max in Single Turn . | . . . . Machines Repaired . | . . . . Machines Dismantled . | . . . . Machines Sabotaged . | . . . . Overloaded Fab Kills . | . . . . Hacking | -11 -10 -9 -8 --------- Run | Yrd Mat Mat Mat Machines Accessed 8 | . 1 1 6 Terminals 8 | . 1 1 6 Fabricators . | . . . . Repair Stations . | . . . . Recycling Units . | . . . . Scanalyzers . | . . . . Garrison Access . | . . . . Total Hacks 29 | . 5 4 20 Successful 6 | . 2 2 2 Failed 23 | . 3 2 18 Catastrophic 6 | . 1 . 5 Database Lockouts . | . . . . Manual 26 | . 5 4 17 Terminals 29 | . 5 4 20 Fabricators . | . . . . Repair Stations . | . . . . Recycling Units . | . . . . Scanalyzers . | . . . . Garrison Access . | . . . . Terminal Hacks 5 | . 2 2 1 Robot Analysis 4 | . 2 2 . Branch Access Points 1 | . . . 1 Fabricator Hacks . | . . . . Repair Station Hacks . | . . . . Recycling Unit Hacks . | . . . . Scanalyzer . | . . . . Garrison Access Hacks . | . . . . Unauthorized Hacks 1 | . . . 1 Terminals 1 | . . . 1 Botnet 1 | . . . 1 Fabricators . | . . . . Repair Stations . | . . . . Recycling Units . | . . . . Scanalyzers . | . . . . Garrison Access . | . . . . Data Cores Recovered . | . . . . Used . | . . . . Hacking Detections 8 | . 1 1 6 Full Trace Events 8 | . 1 1 6 Feedback Events . | . . . . Feedback Blocked . | . . . . Robot Schematics Acquired . | . . . . Robots Built . | . . . . Authchips . | . . . . Time . | . . . . Total Robot Build Rating . | . . . . Part Schematics Acquired . | . . . . Parts Built . | . . . . Authchips . | . . . . Time . | . . . . Total Part Build Rating . | . . . . Parts Repaired . | . . . . Time . | . . . . Parts Recycled . | . . . . Recycled Matter . | . . . . Retrieved Matter . | . . . . Retrieved Components . | . . . . Parts Scanalyzed . | . . . . Part Schematics Acquired . | . . . . Parts Damaged . | . . . . Bothacking | -11 -10 -9 -8 ------------ Run | Yrd Mat Mat Mat Used RIF Installer . | . . . . Robots Hacked . | . . . . Non-combat . | . . . . Combat . | . . . . Robot Hacks Applied . | . . . . Relay Couplers Released . | . . . . Fabnet Peak Effective % . | . . . . Robots Rewired . | . . . . Allies Hacked . | . . . . Hacks Repelled . | . . . . Allies | -11 -10 -9 -8 -------- Run | Yrd Mat Mat Mat Total Allies . | . . . . Largest Group . | . . . . Highest-Rated Group . | . . . . Highest-Rated Ally . | . . . . Total Orders . | . . . . Ally Attacks . | . . . . Total Damage . | . . . . Kills . | . . . . Allies Corrupted . | . . . . Allies Melted . | . . . . Intel | -11 -10 -9 -8 ------- Run | Yrd Mat Mat Mat Robot Analysis Total 4 | . 2 2 . Derelict Logs Recovered . | . . . . Drone Launches . | . . . . Drone Recoveries . | . . . . Exploration | -11 -10 -9 -8 ------------- Run | Yrd Mat Mat Mat Turns Passed 264 | 11 31 43 179 Spaces Moved 641 | 19 64 92 466 Core 47 | 19 28 . . Treads . | . . . . Legs . | . . . . Wheels . | . . . . Hover . | . . . . Flight 594 | . 36 92 466 Fastest Speed 26 | 50 32 29 26 Average Speed 28 | 50 39 29 26 Slowest Speed 50 | 50 50 29 29 Overloaded Moves . | . . . . Propulsion Burnouts . | . . . . Robots Hopped 15 | . 2 . 13 Cave-ins Triggered 1 | . . . 1 Exploration Rate (%) 22 | 3 18 16 51 Regions Visited 3 Branch Regions . Pre-discovered Areas . | . . . . Known Exits Taken . | . . . . Unknown Exits Taken 3 | 1 1 1 . Scrap Searched . | . . . . Spaces Dug 10 | . . 4 6 Terrain Destroyed 10 | . . 4 6 Melee 10 | . . 4 6 Projectile . | . . . . AOE . | . . . . Terrain Rammed . | . . . . Walls Destroyed . | . . . . Machines Disabled . | . . . . Actions | -11 -10 -9 -8 --------- Run | Yrd Mat Mat Mat Total 670 | 19 65 99 487 Wait 9 | . . . 9 Move 611 | 18 59 91 443 Hop 12 | . 2 . 10 Pick Up 8 | . 2 1 5 Fast Attach 6 | 1 2 2 1 Attach 4 | . . 1 3 Detach 1 | . . . 1 Swap 1 | . . . 1 Drop 1 | . . . 1 Fire . | . . . . Melee 17 | . . 4 13 Ram . | . . . . Kick . | . . . . Crush . | . . . . Escape Stasis . | . . . . Rewire . | . . . . Trap . | . . . . Miscellaneous . | . . . . Route ------- -11/Scrapyard -10/Materials -9/Materials (discovered 2 exits: *Mat / [*Sto]) -8/Materials (discovered 2 exits: [*Fac x2]) History --------- Turn | Location | Event 3 | -11/Scrapyard | Discovered new exit (range 15) 12 | -11/Scrapyard | Entered Materials 39 | -10/Materials | Discovered new exit (range 12) 43 | -10/Materials | Entered another Materials area 43 | -9/Materials | Evolved 2 slots: Propulsion x1, Utility x1 74 | -9/Materials | Discovered new exit (range 10) 84 | -9/Materials | Discovered new exit (range 10) 86 | -9/Materials | Entered another Materials area 86 | -8/Materials | Evolved 2 slots: Propulsion x1, Utility x1 138 | -8/Materials | Discovered new exit (range 4) 209 | -8/Materials | Crushed by falling debris 251 | -8/Materials | Discovered new exit (range 3) 265 | -8/Materials | Self-destructed Last Messages --------------- 00209_ Cesium-ion Thruster destroyed. 00209_ System corrupted by crushing effect (+4). 00217_ Connecting with Terminal... 00217_ ALERT: Suspicious activity at Terminal M001. Dispatching Investigation squad. 00218_ Connecting with Terminal... 00218_ ALERT: Suspicious activity at Terminal M002. Dispatching Investigation squad. 00221_ System corrupted: Matter fused (-9). 00226_ O-16 Technician: "IFF HANDSHAKE FAILED. SECURING TERMINAL." 00238_ ALERT: Hostiles spotted, dispatching reinforcements to Terminal M006. 00244_ System corrupted: Substantial component data lost. 00244_ Slug penetrates Nuclear Reactor. 00251_ EXIT=FOUND 00254_ Connecting with Terminal... 00254_ ALERT: Suspicious activity at Terminal M003. Dispatching Investigation squad. Map ----- +----------------------------------------------------+ | ???????????????????????????? ???????? | | ???????????????????????????? ???????? | | ???????????????????????????? ???????????########## | | ???????????????????????????? ????##??????##### | | ???????????????????????????? ???## ####### # | | ???????????????????????????? ???# # < # | | ???????????????????????????# #??#! # # | | ???????????????????????????# #??# # / ! | | ???????????????????????????# #??# ! # # ! | | ???????????????????????????# #??# ]! / # ! | | ???????????????????????????# #??# "" !! # # | | ???????????????????????????# #??# "T ! # ##### | | ???????????????????????????# #??# "" # #???? | | ???????????????????????????# #??# # #???? | | ???????????????????????????# ############# ##### | | ????????????????????######## # * ## | | ????????????? + ## | | ????????????????????######## # """"" ## """" | | ????????????????????# # # """"" ## """" | | ????????????????????# """ # # """"" ## """" | | ????????????????????# """ # # ## | | ????????????????????# """ # #####+##### | | ????????????????????# # | | ????????????????????# """ + | | ????????????????????# """ # | | ????????????????????# """@ ################+###### | | ????????????????????# #?????????????????????? | | ????????????????????# """ #?????????????????????? | | ????????????????????# """ #?????????????????????? | | ????????????????????# """ #?????????????????????? | | ????????????????????# #?????????????????????? | | ????????????????????########?????????????????????? | | ?????????????????????????????????????????????????? | | ?????????????????????????????????????????????????? | | ?????????????????????????????????????????????????? | | ?????????????????????????????????????????????????? | | ?????????????????????????????????????????????????? | | ?????????????????????????????????????????????????? | | ?????????????????????????????????????????????????? | | ?????????????????????????????????????????????????? | | ?????????????????????????????????????????????????# | | ?????????????????????????????????????????????????# | | ?????????????????????????????????????????????????# | | ?????????????????????????????????????????????????# | | ?????????????????????????????????????????????????# | | ?????????????????????????????????????????????????# | | ?????????????????????????????????????????????????# | | ?????????????????????????????????????????????????? | | ?????????????????????????????????????????????????? | | ?????????????????????????????????????????????????? | +----------------------------------------------------+ Best States ------------- Heat Dissipation 31 Energy Generation 12 Energy Capacity 265 Matter Stores 300 Matter Capacity 300 Sight Range 16 Terrain Scan Density 10 Armor Coverage 225 Evasion (%) 64 Item Schematics ----------------- None Robot Schematics ------------------ None Fabricated ------------ Nothing Alien Tech Used ----------------- None Achievements -------------- None Challenges ------------ None Game ------ Seed Gottagofast Manual? 1 Play Time 00:14:19 Cumulative 141.4 hours Start 2024.05.30 @ 22:21:48 End 2024.05.30 @ 22:45:18 Sessions 1 Manual Loads 0 Difficulty Rogue Special Mode None Game No. 127 Rogue 127 Adventurer 0 Explorer 0 Win Type - Total 4 Types 3/0/0/1/0/0/0/0/0 Lore% 64 Gallery% 76 Achievement% 57 Wizard Run 0 Options --------- Layout 1 ASCII 0 Keyboard 0 Movement Numpad Keybinds 0 Fullscreen 1 Font 24/Smallcaps Map View 50x35 Zoom Use 0% Tactical HUD 1 Map Filters NONE Filters NONE Steam 1 RUN: 0543ddb1-911e-4dba-baed-10ec7e90b2cf